fUSD/lending_fUSD_20251210
["ID","MTS","AMOUNT","RATE_DAILY","PERIOD"]
[398087798,1765363853022,-500.0,0.00013972,2]
[398087799,1765363853033,-500.0,0.00013972,2]
[398087800,1765363853043,-500.0,0.00013972,2]
[398087801,1765363853053,-151.0,0.00013972,2]
[398087802,1765363853063,-151.0,0.00013972,2]
[398087803,1765363853072,-500.0,0.00013972,2]
[398087804,1765363853082,-254.228448,0.00013972,2]
[398087805,1765363853091,-500.0,0.00013972,2]
[398087806,1765363853102,-500.0,0.00013972,2]
[398087807,1765363853112,-500.0,0.00013972,2]
[398087808,1765363853123,-970.77,0.00013972,2]
[398087809,1765363853133,-500.0,0.00013972,2]
[398087810,1765363853143,-1025.9,0.00013972,2]
[398087811,1765363853159,-500.0,0.00013972,2]
[398087812,1765363853169,-500.0,0.00013972,2]
[398087813,1765363853179,-500.0,0.00013972,2]
[398087814,1765363853189,-500.0,0.00013972,2]
[398087815,1765363853199,-540.25,0.00013972,2]
[398087816,1765363853210,-500.0,0.00013972,2]
[398087817,1765363853221,-555.46,0.00013972,2]
[398087818,1765363853230,-500.0,0.00013972,2]
[398087819,1765363853239,-500.0,0.00013972,2]
[398087820,1765363853250,-832.02,0.00013972,2]
[398087821,1765363853259,-500.0,0.00013972,2]
[398087822,1765363853268,-500.0,0.00013972,2]
[398087823,1765363853278,-635.2,0.00013972,2]
[398087824,1765363853288,-500.0,0.00013972,2]
[398087825,1765363853298,-500.0,0.00013972,2]
[398087826,1765363853307,-500.0,0.00013972,2]
[398087827,1765363853317,-500.0,0.00013972,2]
[398087828,1765363853327,-515.11,0.00013972,2]
[398087829,1765363853336,-500.0,0.00013972,2]
[398087830,1765363853346,-520.93,0.00013972,2]
[398087831,1765363853357,-615.73312387,0.00013972,2]
[398087832,1765363853366,-557.58,0.00013972,2]
[398087833,1765363853375,-695.06,0.00013972,2]
[398087834,1765363853385,-500.0,0.00013972,2]
[398087835,1765363853395,-500.0,0.00013972,2]
[398087836,1765363853405,-500.0,0.00013972,2]
[398087837,1765363853415,-762.87,0.00013972,2]
[398087838,1765363853425,-2138.7,0.00013972,2]
[398087839,1765363853435,-500.0,0.00013972,2]
[398087840,1765363853445,-500.0,0.00013972,2]
[398087841,1765363853455,-765.27,0.00013972,2]
[398087842,1765363853468,-1364.77,0.00013972,2]
[398087843,1765363853478,-572.05,0.00013972,2]
[398087844,1765363853492,-500.0,0.00013972,2]
[398087845,1765363853502,-500.0,0.00013972,2]
[398087846,1765363853513,-500.0,0.00013972,2]
[398087847,1765363853523,-500.0,0.00013972,2]
[398087848,1765363853533,-516.6,0.00013972,2]
[398087849,1765363853543,-500.0,0.00013972,2]
[398087850,1765363853553,-951.41,0.00013972,2]
[398087851,1765363853563,-679.67,0.00013972,2]
[398087852,1765363853573,-500.0,0.00013972,2]
[398087853,1765363853582,-500.0,0.00013972,2]
[398087854,1765363853592,-718.05,0.00013972,2]
[398087855,1765363853602,-500.0,0.00013972,2]
[398087856,1765363853613,-729.92,0.00013972,2]
[398087857,1765363853623,-500.0,0.00013972,2]
[398087858,1765363853633,-500.0,0.00013972,2]
[398087859,1765363853643,-500.0,0.00013972,2]
[398087860,1765363853653,-531.49,0.00013972,2]
[398087861,1765363853663,-500.0,0.00013972,2]
[398087862,1765363853674,-539.19,0.00013972,2]
[398087863,1765363853684,-500.0,0.00013972,2]
[398087864,1765363853694,-500.0,0.00013972,2]
[398087865,1765363853704,-503.74,0.00013972,2]
[398087866,1765363853714,-641.54,0.00013972,2]
[398087867,1765363853724,-500.0,0.00013972,2]
[398087868,1765363853734,-500.0,0.00013972,2]
[398087869,1765363853744,-500.0,0.00013972,2]
[398087870,1765363853754,-1067.97,0.00013972,2]
[398087871,1765363853764,-500.0,0.00013972,2]
[398087872,1765363853774,-500.0,0.00013972,2]
[398087873,1765363853783,-2594.14,0.00013972,2]
[398087874,1765363853793,-500.0,0.00013972,2]
[398087875,1765363853803,-500.0,0.00013972,2]
[398087876,1765363853814,-500.0,0.00013972,2]
[398087877,1765363853823,-500.0,0.00013972,2]
[398087878,1765363853834,-500.0,0.00013972,2]
[398087879,1765363853844,-500.0,0.00013972,2]
[398087880,1765363853854,-500.0,0.00013972,2]
[398087881,1765363853864,-500.0,0.00013972,2]
[398087882,1765363853873,-545.18,0.00013972,2]
[398087883,1765363853883,-1000.0,0.00013972,2]
[398087884,1765363853893,-500.0,0.00013972,2]
[398087885,1765363853902,-1366.9,0.00013972,2]
[398087886,1765363853912,-500.0,0.00013972,2]
[398087887,1765363853922,-500.0,0.00013972,2]
[398087888,1765363853931,-500.0,0.00013972,2]
[398087889,1765363853942,-780.91,0.00013972,2]
[398087890,1765363853954,-500.0,0.00013972,2]
[398087891,1765363853967,-904.37,0.00013972,2]
[398087892,1765363853977,-500.0,0.00013972,2]
[398087893,1765363853987,-500.0,0.00013972,2]
[398087894,1765363853999,-500.0,0.00013972,2]
[398087895,1765363854008,-500.0,0.00013972,2]
[398087896,1765363854020,-538.42482976,0.00013972,2]
[398087897,1765363854030,-1011.3,0.00013972,2]
[398087898,1765363854045,-1977.85,0.00013972,2]
[398087899,1765363854057,-521.4510053,0.00013972,2]
[398087900,1765363854067,-500.0,0.00013972,2]
[398087901,1765363854077,-172.21532225,0.00013972,2]
[398087902,1765363854088,-500.0,0.00013972,2]
[398087903,1765363854098,-674.04,0.00013972,2]
[398087904,1765363854109,-530.92,0.00013972,2]
[398087905,1765363854119,-500.0,0.00013972,2]
[398087906,1765363854129,-515.73,0.00013972,2]
[398087907,1765363854139,-500.0,0.00013972,2]
[398087908,1765363854150,-500.0,0.00013972,2]
[398087909,1765363854170,-500.0,0.00013972,2]
[398087910,1765363854181,-500.0,0.00013972,2]
[398087911,1765363854191,-746.65,0.00013972,2]
[398087912,1765363854202,-618.95,0.00013972,2]
[398087913,1765363854211,-500.0,0.00013972,2]
[398087914,1765363854221,-509.26935862,0.00013972,2]
[398087915,1765363854230,-500.0,0.00013972,2]
[398087916,1765363854240,-500.0,0.00013972,2]
[398087917,1765363854250,-500.0,0.00013972,2]
[398087918,1765363854259,-500.0,0.00013972,2]
[398087919,1765363854270,-562.39,0.00013972,2]
[398087920,1765363854279,-514.85,0.00013972,2]
[398087921,1765363854288,-500.0,0.00013972,2]
[398087922,1765363854298,-500.0,0.00013972,2]
[398087923,1765363854307,-594.84,0.00013972,2]
[398087924,1765363854317,-2704.59,0.00013972,2]
[398087925,1765363854326,-500.0,0.00013972,2]
[398087926,1765363854335,-1311.95,0.00013972,2]
[398087927,1765363854344,-500.0,0.00013972,2]
[398087928,1765363854353,-672.92,0.00013972,2]
[398087929,1765363854364,-500.0,0.00013972,2]
[398087930,1765363854374,-500.0,0.00013972,2]
[398087931,1765363854383,-500.0,0.00013972,2]
[398087932,1765363854392,-500.0,0.00013972,2]
[398087933,1765363854402,-500.0,0.00013972,2]
[398087934,1765363854411,-500.0,0.00013972,2]
[398087935,1765363854421,-536.09,0.00013972,2]
[398087936,1765363854431,-199.26834621,0.00013972,2]
[398087937,1765363854440,-636.09,0.00013972,2]
[398087938,1765363854450,-500.0,0.00013972,2]
[398087939,1765363854462,-430.73582299,0.00013972,2]
[398087940,1765363854472,-500.0,0.00013972,2]
[398087941,1765363854481,-518.62,0.00013972,2]
[398087942,1765363854491,-500.0,0.00013972,2]
[398087943,1765363854500,-500.0,0.00013972,2]
[398087944,1765363854509,-954.03,0.00013972,2]
[398087945,1765363854519,-2690.76,0.00013972,2]
[398087946,1765363854528,-500.0,0.00013972,2]
[398087947,1765363854538,-500.0,0.00013972,2]
[398087948,1765363854547,-500.0,0.00013972,2]
[398087949,1765363854556,-500.0,0.00013972,2]
[398087950,1765363854566,-500.0,0.00013972,2]
[398087951,1765363854575,-474.81939602,0.00013972,2]
[398087952,1765363854584,-500.0,0.00013972,2]
[398087953,1765363854594,-539.25,0.00013972,2]
[398087954,1765363854603,-500.0,0.00013972,2]
[398087955,1765363854612,-500.0,0.00013972,2]
[398087956,1765363854621,-669.46,0.00013972,2]
[398087957,1765363854630,-500.0,0.00013972,2]
[398087958,1765363854640,-500.0,0.00013972,2]
[398087959,1765363854649,-500.0,0.00013972,2]
[398087960,1765363854658,-500.0,0.00013972,2]
[398087961,1765363854667,-500.0,0.00013972,2]
[398087962,1765363854676,-500.0,0.00013972,2]
[398087963,1765363854685,-500.0,0.00013972,2]
[398087964,1765363854694,-500.0,0.00013972,2]
[398087965,1765363854702,-500.0,0.00013972,2]
[398087966,1765363854712,-500.0,0.00013972,2]
[398087967,1765363854721,-500.0,0.00013972,2]
[398087968,1765363854731,-500.0,0.00013972,2]
[398087969,1765363854741,-500.0,0.00013972,2]
[398087970,1765363854751,-500.0,0.00013972,2]
[398087971,1765363854760,-522.23,0.00013972,2]
[398087972,1765363854769,-500.0,0.00013972,2]
[398087973,1765363854780,-633.04,0.00013972,2]
[398087974,1765363854789,-500.0,0.00013972,2]
[398087975,1765363854799,-854.51,0.00013972,2]
[398087976,1765363854808,-500.0,0.00013972,2]
[398087977,1765363854817,-166.66,0.00013973,2]
[398087978,1765363854826,-605.38519579,0.00013973,2]
[398087979,1765363854836,-478.0,0.00014028,2]
[398087980,1765363854846,-478.0,0.00014052,2]
[398087981,1765363854856,-553.64373807,0.00014094,2]
[398087982,1765363854867,-151.0,0.00014094,2]
[398087983,1765363854876,-231.82878797,0.00014094,2]
[398087984,1765363854886,-1301.0,0.00014094,2]
[398087985,1765363854895,-1162.0,0.00014097,2]
[398087986,1765363854904,-500.0,0.00014097,2]
[398087987,1765363854914,-478.0,0.00014108,2]
[398087988,1765363854924,-478.0,0.00014109,2]
[398087989,1765363854933,-166.66,0.0001411,2]
[398087990,1765363854944,-478.0,0.00014118,2]
[398087991,1765363854958,-3010.0,0.00014146,2]
[398087992,1765363854968,-195.1772435,0.00014191,2]
[398087993,1765363854979,-2435.64011008,0.00014214,2]
[398087994,1765363854989,-535.7238991,0.0001423,2]
[398087995,1765363854998,-1162.0,0.00014234,2]
[398087996,1765363855007,-500.0,0.00014234,2]
[398087997,1765363855016,-205.58412654,0.00014236,2]
[398087998,1765363855217,-500.0,0.00014245,2]
[398087999,1765363855227,-239.59686024,0.00014246,2]
[398088000,1765363855239,-500.0,0.00014246,2]
[398088001,1765363855250,-500.0,0.00014246,2]
[398088002,1765363855260,-521.68764744,0.00014246,2]
[398088003,1765363855271,-500.0,0.00014246,2]
[398088004,1765363855281,-500.0,0.00014246,2]
[398088005,1765363855290,-500.0,0.00014246,2]
[398088006,1765363855299,-500.0,0.00014246,2]
[398088007,1765363855309,-500.0,0.00014246,2]
[398088008,1765363855318,-500.0,0.00014246,2]
[398088009,1765363855327,-500.0,0.00014246,2]
[398088010,1765363855336,-947.85,0.00014246,2]
[398088011,1765363855346,-232.45823373,0.00014246,2]
[398088012,1765363855755,-267.54176627,0.00014246,2]
[398088013,1765363855765,-74.9582335,0.00014246,2]
[398088014,1765363856383,-24.31368459,0.00012708,2]
[398088015,1765363858586,-975.68631541,0.00012708,2]
[398088016,1765363858595,-500.0,0.00013698,2]
[398088017,1765363858604,-500.0,0.00013698,2]
[398088018,1765363858613,-500.0,0.00013698,2]
[398088019,1765363858623,-500.0,0.00013972,2]
[398088020,1765363858632,-500.0,0.00013972,2]
[398088021,1765363858641,-425.0417665,0.00014246,2]
[398088022,1765363858650,-500.0,0.00014246,2]
[398088023,1765363858659,-500.0,0.00014246,2]
[398088024,1765363858668,-179.58870921,0.00014246,2]
[398088025,1765363858677,-500.0,0.00014246,2]
[398088026,1765363858686,-500.0,0.00014246,2]
[398088027,1765363858695,-500.0,0.00014246,2]
[398088028,1765363858704,-500.0,0.00014246,2]
[398088029,1765363858713,-500.0,0.00014246,2]
[398088030,1765363858722,-500.0,0.00014246,2]
[398088031,1765363858732,-500.0,0.00014246,2]
[398088032,1765363858742,-500.0,0.00014246,2]
[398088033,1765363858750,-500.0,0.00014246,2]
[398088034,1765363858760,-500.0,0.00014246,2]
[398088035,1765363858770,-587.0,0.00014246,2]
[398088036,1765363858779,-500.0,0.00014246,2]
[398088037,1765363858788,-321.81092717,0.00014246,2]
[398088038,1765363858797,-500.0,0.00014246,2]
[398088039,1765363858807,-500.0,0.00014246,2]
[398088040,1765363858817,-500.0,0.00014246,2]
[398088041,1765363858826,-500.0,0.00014246,2]
[398088042,1765363858835,-500.0,0.00014246,2]
[398088043,1765363858844,-500.0,0.00014246,2]
[398088044,1765363858854,-501.33,0.00014246,2]
[398088045,1765363858864,-648.47713908,0.00014246,2]
[398088046,1765363858873,-500.0,0.00014246,2]
[398088047,1765363858882,-500.0,0.00014246,2]
[398088048,1765363858892,-500.0,0.00014246,2]
[398088049,1765363858901,-500.0,0.00014246,2]
[398088050,1765363858910,-576.82,0.00014246,2]
[398088051,1765363858919,-500.0,0.00014246,2]
[398088052,1765363858928,-500.0,0.00014246,2]
[398088053,1765363858937,-500.0,0.00014246,2]
[398088054,1765363858947,-500.0,0.00014246,2]
[398088055,1765363858959,-500.0,0.00014246,2]
[398088056,1765363858968,-500.0,0.00014246,2]
[398088057,1765363858979,-438.81875655,0.00014246,2]
[398088058,1765363858988,-500.0,0.00014246,2]
[398088059,1765363858997,-500.0,0.00014246,2]
[398088060,1765363859006,-450.32503898,0.00014246,2]
[398088061,1765363859015,-500.0,0.00014246,2]
[398088062,1765363859026,-374.14774104,0.00014246,2]
[398088063,1765363859037,-532.94,0.00014246,2]
[398088064,1765363859045,-521.43048656,0.00014246,2]
[398088065,1765363859054,-526.76,0.00014246,2]
[398088066,1765363859064,-500.0,0.00014246,2]
[398088067,1765363859074,-685.62,0.00014246,2]
[398088068,1765363859083,-500.0,0.00014246,2]
[398088069,1765363859092,-500.0,0.00014246,2]
[398088070,1765363859103,-500.0,0.00014246,2]
[398088071,1765363859113,-778.96,0.00014246,2]
[398088072,1765363859123,-500.0,0.00014246,2]
[398088073,1765363859133,-500.0,0.00014246,2]
[398088074,1765363859143,-500.0,0.00014246,2]
[398088075,1765363859152,-500.0,0.00014246,2]
[398088076,1765363859161,-500.0,0.00014246,2]
[398088077,1765363859170,-500.0,0.00014246,2]
[398088078,1765363859179,-500.0,0.00014246,2]
[398088079,1765363859189,-594.25,0.00014246,2]
[398088080,1765363859199,-500.0,0.00014246,2]
[398088081,1765363859208,-500.0,0.00014246,2]
[398088082,1765363859217,-412.34,0.00014246,2]
[398088083,1765363859227,-695.24,0.00014246,2]
[398088084,1765363859236,-564.15717857,0.00014246,2]
[398088085,1765363859246,-500.0,0.00014246,2]
[398088086,1765363859257,-500.0,0.00014246,2]
[398088087,1765363859268,-466.20915877,0.00014246,2]
[398088088,1765363859280,-500.0,0.00014246,2]
[398088089,1765363859289,-500.0,0.00014246,2]
[398088090,1765363859299,-500.0,0.00014246,2]
[398088091,1765363859308,-500.0,0.00014246,2]
[398088092,1765363859317,-500.0,0.00014246,2]
[398088093,1765363859326,-571.54,0.00014246,2]
[398088094,1765363859335,-500.0,0.00014246,2]
[398088095,1765363859344,-500.0,0.00014246,2]
[398088096,1765363859353,-500.0,0.00014246,2]
[398088097,1765363859362,-500.0,0.00014246,2]
[398088098,1765363859371,-500.0,0.00014246,2]
[398088099,1765363859379,-500.0,0.00014246,2]
[398088100,1765363859388,-500.0,0.00014246,2]
[398088101,1765363859397,-500.0,0.00014246,2]
[398088102,1765363859407,-500.0,0.00014246,2]
[398088103,1765363859415,-500.0,0.00014246,2]
[398088104,1765363859424,-537.71,0.00014246,2]
[398088105,1765363859433,-500.0,0.00014246,2]
[398088106,1765363859446,-500.0,0.00014246,2]
[398088107,1765363859464,-500.0,0.00014246,2]
[398088108,1765363859478,-526.55,0.00014246,2]
[398088109,1765363859492,-622.54,0.00014246,2]
[398088110,1765363859509,-500.0,0.00014246,2]
[398088111,1765363859525,-500.0,0.00014246,2]
[398088112,1765363859540,-500.0,0.00014246,2]
[398088113,1765363859551,-569.43,0.00014246,2]
[398088114,1765363859568,-500.0,0.00014246,2]
[398088115,1765363859582,-500.0,0.00014246,2]
[398088116,1765363859600,-500.0,0.00014246,2]
[398088117,1765363859618,-614.97,0.00014246,2]
[398088118,1765363859633,-500.0,0.00014246,2]
[398088119,1765363859649,-500.0,0.00014246,2]
[398088120,1765363859664,-500.0,0.00014246,2]
[398088121,1765363859683,-500.0,0.00014246,2]
[398088122,1765363859699,-500.0,0.00014246,2]
[398088123,1765363859715,-500.0,0.00014246,2]
[398088124,1765363859730,-500.0,0.00014246,2]
[398088125,1765363859742,-500.0,0.00014246,2]
[398088126,1765363859756,-500.0,0.00014246,2]
[398088127,1765363859772,-500.0,0.00014246,2]
[398088128,1765363859783,-500.0,0.00014246,2]
[398088129,1765363859795,-500.0,0.00014246,2]
[398088130,1765363859809,-500.0,0.00014246,2]
[398088131,1765363859822,-500.0,0.00014246,2]
[398088132,1765363859834,-521.75,0.00014246,2]
[398088133,1765363859847,-691.35,0.00014246,2]
[398088134,1765363859861,-500.0,0.00014246,2]
[398088135,1765363859875,-500.0,0.00014246,2]
[398088136,1765363859886,-500.0,0.00014246,2]
[398088137,1765363859898,-500.0,0.00014246,2]
[398088138,1765363859910,-500.0,0.00014246,2]
[398088139,1765363859924,-831.61,0.00014246,2]
[398088140,1765363859941,-580.62,0.00014246,2]
[398088141,1765363859957,-607.34,0.00014246,2]
[398088142,1765363859970,-295.75536222,0.00014246,2]
[398088143,1765363859982,-500.0,0.00014246,2]
[398088144,1765363859997,-558.66,0.00014246,2]
[398088145,1765363860011,-175.21633948,0.00014246,2]
[398088146,1765363860023,-500.0,0.00014246,2]
[398088147,1765363860038,-500.0,0.00014246,2]
[398088148,1765363860051,-500.0,0.00014246,2]
[398088149,1765363860064,-500.0,0.00014246,2]
[398088150,1765363860078,-687.2,0.00014246,2]
[398088151,1765363860090,-500.0,0.00014246,2]
[398088152,1765363860103,-500.0,0.00014246,2]
[398088153,1765363860116,-697.92,0.00014246,2]
[398088154,1765363860128,-500.0,0.00014246,2]
[398088155,1765363860141,-663.24,0.00014246,2]
[398088156,1765363860154,-500.0,0.00014246,2]
[398088157,1765363860167,-500.0,0.00014246,2]
[398088158,1765363860181,-500.0,0.00014246,2]
[398088159,1765363860194,-500.0,0.00014246,2]
[398088160,1765363860207,-500.0,0.00014246,2]
[398088161,1765363860221,-500.0,0.00014246,2]
[398088162,1765363860233,-632.86,0.00014246,2]
[398088163,1765363860246,-500.0,0.00014246,2]
[398088164,1765363860259,-500.0,0.00014246,2]
[398088165,1765363860272,-500.0,0.00014246,2]
[398088166,1765363860284,-516.81,0.00014246,2]
[398088167,1765363860296,-500.0,0.00014246,2]
[398088168,1765363860310,-500.0,0.00014246,2]
[398088169,1765363860324,-528.53,0.00014246,2]
[398088170,1765363860336,-500.0,0.00014246,2]
[398088171,1765363860348,-500.0,0.00014246,2]
[398088172,1765363860360,-500.0,0.00014246,2]
[398088173,1765363860373,-500.0,0.00014246,2]
[398088174,1765363860386,-588.94,0.00014246,2]
[398088175,1765363860399,-500.0,0.00014246,2]
[398088176,1765363860412,-575.19,0.00014246,2]
[398088177,1765363860427,-550.51,0.00014246,2]
[398088178,1765363860440,-520.64,0.00014246,2]
[398088179,1765363860454,-500.0,0.00014246,2]
[398088180,1765363860466,-500.0,0.00014246,2]
[398088181,1765363860480,-1386.52,0.00014246,2]
[398088182,1765363860492,-500.0,0.00014246,2]
[398088183,1765363860505,-500.0,0.00014246,2]
[398088184,1765363860519,-500.0,0.00014246,2]
[398088185,1765363860532,-626.72,0.00014246,2]
[398088186,1765363860544,-540.35,0.00014246,2]
[398088187,1765363860557,-537.38340807,0.00014246,2]
[398088188,1765363860568,-500.0,0.00014246,2]
[398088189,1765363860581,-500.0,0.00014246,2]
[398088190,1765363860593,-500.0,0.00014246,2]
[398088191,1765363860605,-500.0,0.00014246,2]
[398088192,1765363860617,-500.0,0.00014246,2]
[398088193,1765363860630,-500.0,0.00014246,2]
[398088194,1765363860642,-500.0,0.00014246,2]
[398088195,1765363860654,-500.0,0.00014246,2]
[398088196,1765363860666,-500.0,0.00014246,2]
[398088197,1765363860678,-1096.94,0.00014246,2]
[398088198,1765363860691,-500.0,0.00014246,2]
[398088199,1765363860703,-547.45,0.00014246,2]
[398088200,1765363860715,-1026.31,0.00014246,2]
[398088201,1765363860728,-500.0,0.00014246,2]
[398088202,1765363860741,-500.0,0.00014246,2]
[398088203,1765363860753,-500.0,0.00014246,2]
[398088204,1765363860766,-500.0,0.00014246,2]
[398088205,1765363860778,-500.0,0.00014246,2]
[398088206,1765363860791,-500.0,0.00014246,2]
[398088207,1765363860803,-851.24,0.00014246,2]
[398088208,1765363860816,-500.0,0.00014246,2]
[398088209,1765363860828,-504.48,0.00014246,2]
[398088210,1765363860840,-500.0,0.00014246,2]
[398088211,1765363860853,-500.0,0.00014246,2]
[398088212,1765363860865,-500.0,0.00014246,2]
[398088213,1765363860877,-500.0,0.00014246,2]
[398088214,1765363860889,-500.0,0.00014246,2]
[398088215,1765363860902,-500.0,0.00014246,2]
[398088216,1765363860915,-500.0,0.00014246,2]
[398088217,1765363860927,-500.0,0.00014246,2]
[398088218,1765363860940,-522.11,0.00014246,2]
[398088219,1765363860956,-500.0,0.00014246,2]
[398088220,1765363860969,-500.0,0.00014246,2]
[398088221,1765363860983,-500.0,0.00014246,2]
[398088222,1765363860994,-641.21381668,0.00014246,2]
[398088223,1765363861003,-500.0,0.00014246,2]
[398088224,1765363861013,-610.27,0.00014246,2]
[398088225,1765363861022,-687.03,0.00014246,2]
[398088226,1765363861032,-579.87199189,0.00014246,2]
[398088227,1765363861041,-300.88030561,0.00014246,2]
[398088228,1765363861050,-500.0,0.00014246,2]
[398088229,1765363861060,-500.0,0.00014246,2]
[398088230,1765363861070,-500.0,0.00014246,2]
[398088231,1765363861079,-500.0,0.00014246,2]
[398088232,1765363861089,-500.0,0.00014246,2]
[398088233,1765363861099,-500.0,0.00014246,2]
[398088234,1765363861109,-659.53,0.00014246,2]
[398088235,1765363861119,-500.0,0.00014246,2]
[398088236,1765363861128,-1423.99,0.00014246,2]
[398088237,1765363861137,-605.66,0.00014246,2]
[398088238,1765363861146,-500.0,0.00014246,2]
[398088239,1765363861155,-500.0,0.00014246,2]
[398088240,1765363861164,-535.23,0.00014246,2]
[398088241,1765363861173,-500.0,0.00014246,2]
[398088242,1765363861182,-500.0,0.00014246,2]
[398088243,1765363861191,-500.0,0.00014246,2]
[398088244,1765363861200,-500.0,0.00014246,2]
[398088245,1765363861209,-500.0,0.00014246,2]
[398088246,1765363861219,-943.64,0.00014246,2]
[398088247,1765363861227,-245.02784675,0.00014246,2]
[398088248,1765363861236,-500.0,0.00014246,2]
[398088249,1765363861245,-500.0,0.00014246,2]
[398088250,1765363861254,-605.73,0.00014246,2]
[398088251,1765363861266,-500.0,0.00014246,2]
[398088252,1765363861275,-694.43,0.00014246,2]
[398088253,1765363861285,-500.0,0.00014246,2]
[398088254,1765363861294,-500.0,0.00014246,2]
[398088255,1765363861303,-445.03521834,0.00014246,2]
[398088256,1765363861317,-500.0,0.00014246,2]
[398088257,1765363861332,-534.57,0.00014246,2]
[398088258,1765363861341,-500.0,0.00014246,2]
[398088259,1765363861715,-500.0,0.00014246,2]
[398088260,1765363861750,-500.0,0.00014246,2]
[398088261,1765363861773,-500.0,0.00014246,2]
[398088262,1765363861784,-637.14,0.00014246,2]
[398088263,1765363861793,-500.0,0.00014246,2]
[398088264,1765363861802,-604.75560213,0.00014246,2]
[398088265,1765363861812,-500.0,0.00014246,2]
[398088266,1765363861821,-500.0,0.00014246,2]
[398088267,1765363861831,-500.0,0.00014246,2]
[398088268,1765363861840,-500.0,0.00014246,2]
[398088269,1765363861849,-500.0,0.00014246,2]
[398088270,1765363861858,-500.0,0.00014246,2]
[398088271,1765363861867,-1035.09,0.00014246,2]
[398088272,1765363861876,-500.0,0.00014246,2]
[398088273,1765363861885,-638.9,0.00014246,2]
[398088274,1765363861894,-500.0,0.00014246,2]
[398088275,1765363861904,-500.0,0.00014246,2]
[398088276,1765363861913,-500.0,0.00014246,2]
[398088277,1765363861922,-590.56,0.00014246,2]
[398088278,1765363861931,-500.0,0.00014246,2]
[398088279,1765363861941,-298.00003748,0.00014246,2]
[398088280,1765363861951,-500.0,0.00014246,2]
[398088281,1765363861964,-500.0,0.00014246,2]
[398088282,1765363861974,-823.36,0.00014246,2]
[398088283,1765363861984,-500.0,0.00014246,2]
[398088284,1765363861993,-500.0,0.00014246,2]
[398088285,1765363862003,-610.31,0.00014246,2]
[398088286,1765363862012,-500.0,0.00014246,2]
[398088287,1765363862021,-500.0,0.00014246,2]
[398088288,1765363862030,-500.0,0.00014246,2]
[398088289,1765363862041,-500.0,0.00014246,2]
[398088290,1765363862050,-500.0,0.00014246,2]
[398088291,1765363862059,-500.0,0.00014246,2]
[398088292,1765363862075,-500.0,0.00014246,2]
[398088293,1765363862093,-500.0,0.00014246,2]
[398088294,1765363862102,-620.79,0.00014246,2]
[398088295,1765363862111,-500.0,0.00014246,2]
[398088296,1765363862120,-888.67,0.00014246,2]
[398088297,1765363862129,-151.0,0.00014246,2]